fUSD/lending_fUSD_20240218
["ID","MTS","AMOUNT","RATE_DAILY","PERIOD"]
[314393359,1708267846537,-179.24,0.00036227,2]
[314393360,1708267846546,-595.36,0.00036289,2]
[314393361,1708267846555,-151.0,0.00036343,120]
[314393362,1708267846564,-300.0,0.00036388,2]
[314393363,1708267846573,-300.0,0.00036388,2]
[314393364,1708267846582,-300.0,0.00036388,2]
[314393365,1708267846591,-300.0,0.00036388,2]
[314393366,1708267846600,-235.19611924,0.00036388,2]
[314393367,1708267846612,-64.80388076,0.00036388,2]
[314393368,1708267846621,-214.70198504,0.00036388,2]
[314393369,1708267846629,-666.0,0.00036388,2]
[314393370,1708267846638,-1789.2351342,0.00036389,2]
[314393371,1708267846649,-509.94462199,0.00036389,2]
[314393372,1708267870319,599.4615165,0.00023,2]
[314393373,1708267870340,119607.73047117,0.00023,2]
[314393374,1708267870372,992009.07523439,0.00023,2]
[314393375,1708267870397,2351288.39396485,0.00023,2]
[314393376,1708268024826,550.0,0.00025,3]
[314393377,1708268044010,49.4615165,0.0002425,2]
[314393378,1708268044035,105.75990548,0.0002425,2]
[314393379,1708268050117,280.71308786,0.00012,30]
[314393380,1708268059656,212.98852316,0.00025,2]
[314393381,1708268059681,112.91357226,0.00025,2]
[314393382,1708268066478,486.54794424,0.00025,30]
[314393383,1708268066503,2430.60882126,0.00025,30]
[314393405,1708269032374,-515.91907522,0.00026963,2]
[314393406,1708269032384,-500.0,0.00026964,2]
[314393407,1708269032393,-414.74142257,0.00026965,2]
[314393408,1708269032402,-600.0,0.00027,3]
[314393409,1708269032412,-2049.35163358,0.0002799,2]
[314393410,1708269032421,-260.08222874,0.00027998,2]
[314393411,1708269032430,-358.39820342,0.00027999,2]
[314393412,1708269032441,-17.53396351,0.00028,2]
[314393413,1708269032454,-1017.50887766,0.00028,2]
[314393414,1708269032480,-35239.63528362,0.00028,2]
[314393415,1708269032500,-314.19872509,0.00028,2]
[314393416,1708269032557,-1712.57262717,0.00028,2]
[314393417,1708269032569,-514.09738186,0.00028,2]
[314393418,1708269032580,-517.74537406,0.00028,2]
[314393419,1708269032598,-978.38243839,0.00028,2]
[314393447,1708269038347,-2585.25504428,0.00028,2]
[314393448,1708269038508,-2100.49602522,0.00028,2]
[314393449,1708269038521,-149964.51850494,0.00028,2]
[314393450,1708269038532,-556.59828451,0.000287,2]
[314393451,1708269038542,-650.0,0.00029,3]
[314393452,1708269038552,-700.0,0.00031,3]
[314393453,1708269038561,-504.23,0.00032777,2]
[314393454,1708269038571,-750.0,0.00033,3]
[314393455,1708269038582,-460.4071625,0.00033,120]
[314393456,1708269038593,-178.6,0.00034629,2]
[314393457,1708269038603,-162.32,0.00034716,2]
[314393458,1708269038612,-396.9,0.00034756,2]
[314393459,1708269038622,-800.0,0.00034784,2]
[314393460,1708269038631,-1021.77,0.00034817,2]
[314393461,1708269038641,-391.67431304,0.00035,4]
[314393462,1708269038651,-800.0,0.00035,3]
[314393463,1708269038660,-504.23,0.0003504,2]
[314393464,1708269038669,-200.0,0.00035247,2]
[314393465,1708269038679,-151.0,0.00035269,120]
[314393466,1708269038688,-521.12,0.00035414,2]
[314393467,1708269038698,-507.09,0.0003559,2]
[314393468,1708269038707,-923.0,0.000356,2]
[314393469,1708269038716,-11464.0,0.000358,2]
[314393470,1708269038726,-151.0,0.00035989,30]
[314393471,1708269038736,-1152.25345678,0.00036,3]
[314393472,1708269038745,-150.0,0.00036036,2]
[314393473,1708269038754,-915.376,0.00036108,2]
[314393474,1708269038764,-2886.0,0.00036108,2]
[314393475,1708269038774,-1408.74573013,0.00036153,2]
[314393476,1708269038786,-200.0,0.00036363,2]
[314393477,1708269038798,-500.0,0.00036387,2]
[314393478,1708269038808,-500.0,0.00036387,2]
[314393479,1708269038818,-500.0,0.00036387,2]
[314393480,1708269038827,-500.0,0.00036387,2]
[314393481,1708269038837,-599.97,0.00036387,2]
[314393482,1708269038847,-500.0,0.00036387,2]
[314393483,1708269038858,-500.0,0.00036387,2]
[314393484,1708269038868,-500.0,0.00036388,2]
[314393485,1708269038880,-500.0,0.00036388,2]
[314393486,1708269038891,-500.0,0.00036388,2]
[314393487,1708269038900,-500.0,0.00036388,2]
[314393488,1708269038910,-442.46,0.00036388,2]
[314393489,1708269038921,-259.79532937,0.00036388,2]
[314393490,1708269038931,-500.0,0.00036388,2]
[314393491,1708269038943,-500.0,0.00036388,2]
[314393492,1708269038952,-500.0,0.00036388,2]
[314393493,1708269038961,-500.0,0.00036388,2]
[314393494,1708269038971,-500.0,0.00036388,2]
[314393495,1708269038983,-500.0,0.00036388,2]
[314393496,1708269038993,-500.0,0.00036388,2]
[314393497,1708269039003,-500.0,0.00036388,2]
[314393498,1708269039013,-500.0,0.00036388,2]
[314393499,1708269039023,-500.0,0.00036388,2]
[314393500,1708269039033,-500.0,0.00036388,2]
[314393501,1708269039046,-500.0,0.00036388,2]
[314393502,1708269039055,-500.0,0.00036388,2]
[314393503,1708269039065,-550.233,0.00036388,2]
[314393504,1708269039075,-593.29,0.00036388,2]
[314393505,1708269039084,-500.0,0.00036388,2]
[314393506,1708269039094,-500.0,0.00036388,2]
[314393507,1708269039103,-164.42529707,0.00036388,2]
[314393508,1708269039113,-500.0,0.00036388,2]
[314393509,1708269039123,-500.0,0.00036388,2]
[314393510,1708269039134,-598.65416,0.00036389,2]
[314393511,1708269039144,-3999.99999698,0.00036389,2]
[314393512,1708269039153,-396.9,0.000364,2]
[314393513,1708269039164,-162.32,0.00036429,2]
[314393514,1708269039175,-17518.0,0.000365,5]
[314393515,1708269039184,-152.24,0.00036506,2]
[314393516,1708269039194,-500.0,0.00036599,2]
[314393517,1708269039204,-241.2,0.00036599,2]
[314393518,1708269039213,-593.29,0.00036599,2]
[314393519,1708269039223,-500.0,0.00036599,2]
[314393520,1708269039232,-302.71,0.00036599,2]
[314393521,1708269039242,-563.14686525,0.0003668,30]
[314393522,1708269039256,-1408.74573013,0.00036698,2]
[314393523,1708269039266,-42206.64236969,0.000367,3]
[314393524,1708269039276,-997.98,0.000367,2]
[314393525,1708269039285,-1125.9655,0.000367,2]
[314393526,1708269039296,-888.67742643,0.000367,2]
[314393527,1708269039306,-151.0,0.00036723,7]
[314393528,1708269039316,-1865.56498674,0.00036798,2]
[314393529,1708269039325,-1865.56498671,0.00036798,2]
[314393530,1708269039336,-1865.56498671,0.00036798,2]
[314393531,1708269039346,-1865.56498671,0.00036798,2]
[314393532,1708269039356,-1865.56498671,0.00036798,2]
[314393533,1708269039365,-1865.56498671,0.00036798,2]
[314393534,1708269039375,-1865.56498671,0.00036798,2]
[314393535,1708269039385,-500.0,0.00036799,2]
[314393536,1708269039395,-593.29,0.00036799,2]
[314393537,1708269039407,-593.29,0.00036799,2]
[314393538,1708269039416,-345.79,0.00036799,2]
[314393539,1708269039426,-500.0,0.00036799,2]
[314393540,1708269039436,-500.0,0.00036799,2]
[314393541,1708269039446,-1378.094619,0.000368,2]
[314393542,1708269039457,-20670.47132647,0.000368,2]
[314393543,1708269039474,-3089.03102451,0.000368,2]
[314393544,1708269039487,-4324.21696439,0.000368,2]
[314393548,1708269040965,-500.0,0.00036388,2]
[314393549,1708269040976,-500.0,0.00036599,2]
[314393550,1708269040986,-195.30789447,0.00036799,2]
[314393551,1708269040998,-304.69210553,0.00036799,2]
[314393552,1708269041008,-404.9532668,0.00036799,2]
[314393553,1708269041018,-133.30462768,0.000368,2]
[314393554,1708269041034,-2148.97713805,0.000368,2]
[314393555,1708269041137,-455.20087013,0.000368,2]
[314393556,1708269041968,-879.675,0.000368,2]
[314393557,1708269041981,-16401.77186913,0.000368,2]
[314393578,1708269043409,-2459.53667299,0.000368,2]
[314393579,1708269043621,-5222.47262665,0.000368,2]
[314393580,1708269043631,-171296.2491414,0.000368,2]
[314393589,1708269046368,-400.0,0.00036799,3]
[314393590,1708269046377,-400.0,0.00036799,3]
[314393591,1708269046387,-601.3761831,0.00036799,2]
[314393592,1708269046422,-97.97829871,0.00036799,2]
[314393593,1708269046433,-500.0,0.00036799,4]
[314393594,1708269046445,-362.68686529,0.000368,2]
[314393595,1708269046457,-11563.15329572,0.000368,2]
[314393596,1708269046471,-977.52,0.000368,2]
[314393597,1708269046484,-2616.96942512,0.000368,2]
[314393598,1708269046497,-20736.53824885,0.000368,2]
[314393599,1708269046507,-5718.342009,0.000368,2]
[314393600,1708269046517,-152.24,0.00036808,2]
[314393601,1708269046526,-267.16535073,0.000369,2]
[314393602,1708269046536,-500.0,0.00036986,2]
[314393603,1708269046547,-500.0,0.00036986,2]
[314393604,1708269046557,-500.0,0.00036986,2]
[314393605,1708269046567,-500.0,0.00036986,2]
[314393606,1708269046578,-393.76,0.00036986,2]
[314393607,1708269046589,-200.0,0.00036987,2]
[314393608,1708269046599,-300.0,0.00037,38]
[314393609,1708269046609,-312.44640567,0.00037,4]
[314393610,1708269046620,-509.73186497,0.00037,2]
[314393611,1708269046630,-152.22987908,0.00037,2]
[314393612,1708269046641,-771.28219016,0.00037,10]
[314393613,1708269046652,-7722.06076918,0.000371,3]
[314393614,1708269046664,-10647.43729242,0.000371,3]
[314393615,1708269046673,-152.24,0.00037109,2]
[314393616,1708269046683,-164.7,0.00037129,2]
[314393617,1708269046692,-200.0,0.000372,10]
[314393618,1708269046701,-771.28219005,0.00037203,10]
[314393619,1708269046710,-5000.0,0.00037259,3]
[314393620,1708269046719,-504.23,0.00037304,2]
[314393621,1708269046728,-622.94710769,0.00037319,2]
[314393622,1708269046737,-593.29,0.00037319,2]
[314393623,1708269046747,-593.29,0.00037319,2]
[314393624,1708269046756,-99803.0699298,0.00037356,3]
[314393625,1708269046768,-20722.86036609,0.00037356,3]
[314393626,1708269046780,-6738.57132603,0.00037356,3]
[314393627,1708269046797,-565.84359805,0.00037356,3]
[314393628,1708269046809,-38257.48302813,0.00037356,3]
[314393629,1708269046821,-488.12999502,0.00037356,3]
[314393630,1708269046838,-3450.19122688,0.00037356,3]
[314393631,1708269046851,-53037.02642767,0.00037356,3]
[314393632,1708269049897,-693.1734216,0.00036798,4]
[314393633,1708269049909,-420.58746065,0.00037356,3]
[314393634,1708269049921,-13140.25,0.00037356,3]
[314393635,1708269833768,550.0,0.00025,3]
[314393644,1708270231584,-312.37220644,0.0002809,2]
[314393645,1708270231644,-203.54686878,0.0002809,2]
[314393646,1708270231653,-1067.83594842,0.0002809,2]
[314393647,1708270231664,-2761.39446304,0.00028291,2]
[314393648,1708270231677,-337.5501158,0.00028291,2]
[314393649,1708270231689,-405.33883369,0.00028291,2]
[314393650,1708270231708,-622.67114989,0.00028291,2]
[314393651,1708270231719,-261.19731732,0.00028291,2]
[314393652,1708270231729,-671.31011579,0.000285,2]
[314393653,1708270231738,-152.0,0.00028729,3]
[314393654,1708270231747,-152.0,0.00032584,4]
[314393655,1708270231757,-151.25568,0.00033,3]
[314393656,1708270231766,-446.77,0.00033566,2]
[314393657,1708270231775,-391.67431304,0.00035,4]
[314393658,1708270231784,-162.32,0.00035421,2]
[314393659,1708270231793,-640.0,0.00035472,2]
[314393660,1708270231803,-360.0,0.00035475,2]
[314393661,1708270231812,-434.26,0.00035503,2]
[314393662,1708270231821,-150.97,0.00035509,2]
[314393663,1708270231830,-851.47,0.00035523,2]
[314393664,1708270231839,-264.6,0.00035565,2]
[314393665,1708270231848,-515.50109327,0.000356,2]
[314393670,1708270237585,-333.75999999,0.0002829,2]
[314393671,1708270237748,-166.24000001,0.0002829,2]
[314393672,1708270237757,-1748.0,0.000349,2]
[314393673,1708270237778,-408.49890673,0.000356,2]
[314393674,1708270237789,-151.0,0.00035758,120]
[314393675,1708270237798,-253.55,0.0003579,2]
[314393676,1708270237808,-446.77,0.0003583,2]
[314393677,1708270237817,-179.31,0.00035874,2]
[314393678,1708270237826,-162.922951,0.00035946,2]
[314393679,1708270237836,-1552.451593,0.00036,2]
[314393680,1708270237845,-1312.28379795,0.00036,4]
[314393681,1708270237855,-162.0,0.00036,2]
[314393683,1708270237864,-2586.0,0.00036105,2]
[314393685,1708270237873,-366.25249002,0.00036235,4]
[314393686,1708270237883,-183.97810608,0.00036388,2]
[314393687,1708270237892,-152.0,0.00036438,5]
[314393688,1708270237901,-151.0,0.00036488,30]
[314393689,1708270237911,-41840.7421553,0.00036688,2]
[314393715,1708270242540,-162.0,0.00036,2]
[314393716,1708270242549,-783.41897268,0.00036688,2]
[314393717,1708270242561,-2459.53667299,0.00036688,2]
[314393718,1708270242605,-562.00000015,0.00036688,2]
[314393783,1708270245495,-378.41523539,0.00036688,2]
[314393784,1708270245552,-3196.338508,0.00036688,2]
[314393785,1708270245565,-25802.22796033,0.00036688,2]
[314393786,1708270245580,-9669.03273667,0.00036688,2]
[314393787,1708270245748,-24994.68394784,0.00036688,2]
[314393788,1708270245781,-280.57,0.00036688,2]
[314393789,1708270245835,-7464.02625058,0.00036688,2]
[314393790,1708270245847,-2999.99999999,0.00036688,2]
[314393791,1708270245892,-467.43016111,0.00036688,2]
[314393851,1708270597223,-693.1734216,0.00032697,4]
[314393852,1708270597245,-500.0,0.00032697,4]
[314393853,1708270597264,-176.05778176,0.00032698,2]
[314393854,1708270597285,-4000.0,0.000329,2]
[314393855,1708270597303,-464.0295352,0.00033,4]
[314393856,1708270597325,-477.44,0.00033535,2]
[314393857,1708270597344,-158.81510178,0.00034698,2]
[314393858,1708270597365,-150.0,0.00034899,3]
[314393859,1708270597385,-150.0,0.00034899,3]
[314393860,1708270597405,-1783.0,0.000349,2]
[314393861,1708270597425,-8617.48415966,0.000349,2]
[314393870,1708271431813,-250.7501205,0.00027833,2]
[314393885,1708271437707,-249.2498795,0.00027833,2]
[314393886,1708271437716,-116.77751731,0.00027833,2]
[314393887,1708271437731,-399.14155791,0.00027833,2]
[314393888,1708271437741,-230.43529803,0.00027834,2]
[314393889,1708271437751,-185.05830595,0.00027835,2]
[314393890,1708271437760,-170.88,0.00027937,2]
[314393891,1708271437770,-453.56,0.00033021,2]
[314393892,1708271437779,-555.0,0.00034281,2]
[314393893,1708271437788,-158.81510176,0.000348,2]
[314393894,1708271437798,-439.16152075,0.00034885,2]
[314393895,1708271437810,-69.95847925,0.00034885,2]
[314393896,1708271437819,-250.0,0.00034892,2]
[314393897,1708271437828,-92.82652076,0.00034899,2]
[314393898,1708271437840,-2832.60806573,0.00034899,2]
[314393899,1708271437850,-628.50517492,0.000349,2]
[314393900,1708271437866,-2502.01066542,0.000349,2]
[314393901,1708271437876,-200.0,0.0003492,2]
[314393902,1708271437885,-8827.66587442,0.00034928,2]
[314393903,1708271437896,-8395.12219589,0.00034928,2]
[314393904,1708271437907,-3113.6,0.00034928,2]
[314393905,1708271437918,-1268.3571268,0.00034928,2]
[314393906,1708271437975,-2295.25480289,0.00034928,2]
[314393907,1708271437985,-152.24,0.00034932,2]
[314393908,1708271437994,-361.88,0.00034935,2]
[314393909,1708271438003,-363.31,0.00034951,2]
[314393910,1708271438013,-250.0,0.00035108,2]
[314393919,1708271438204,-288.0,0.00035129,2]
[314393921,1708271438213,-1234.14,0.00035153,2]
[314393923,1708271438222,-18.67182037,0.00035171,2]
[314393924,1708271438235,-481.32817963,0.00035171,2]
[314393926,1708271438245,-453.56,0.00035285,2]
[314393928,1708271438254,-153.76,0.00035345,2]
[314393930,1708271438263,-152.24,0.00035368,2]
[314393931,1708271438272,-2000.0,0.00035372,2]
[314393933,1708271438282,-180.28,0.0003539,2]
[314393935,1708271438291,-712.0,0.00035436,2]
[314393937,1708271438301,-496.63,0.00035468,2]
[314393938,1708271438310,-1344.32,0.00035474,2]
[314393940,1708271438319,-499.99,0.00035474,2]
[314393942,1708271438328,-171.22,0.0003564,2]
[314393943,1708271438337,-153.76,0.00035652,2]
[314393945,1708271438347,-151.0,0.00035665,120]
[314393947,1708271438356,-155.01,0.00035701,2]
[314393949,1708271438365,-152.24,0.00035805,2]
[314393950,1708271438373,-164.65,0.00035847,2]
[314393952,1708271438383,-182.756685,0.00035946,2]
[314393953,1708271438393,-188.378633,0.00035946,2]
[314393954,1708271438402,-689.264445,0.00035946,2]
[314393955,1708271438414,-289.262272,0.00035946,2]
[314393956,1708271438423,-153.76,0.00035959,2]
[314393957,1708271438432,-2486.037,0.00035994,2]
[314393958,1708271438442,-1255.0,0.00035994,2]
[314393959,1708271438453,-1231.0,0.00035994,2]
[314393960,1708271438462,-454.0,0.00035994,2]
[314393961,1708271438471,-2291.0,0.00035994,2]
[314393962,1708271438480,-26987.19,0.00036,2]
[314393963,1708271438489,-253.55,0.00036,2]
[314393964,1708271438498,-155.0,0.00036,2]
[314393965,1708271438508,-354.72,0.00036,2]
[314393966,1708271438517,-500.0,0.00036,2]
[314393967,1708271438526,-150.0,0.00036164,2]
[314393968,1708271438535,-152.24,0.00036241,2]
[314393969,1708271438544,-153.76,0.00036266,2]
[314393970,1708271438554,-151.0,0.00036393,30]
[314393971,1708271438564,-689.264445,0.00036395,2]
[314393972,1708271438573,-289.262272,0.00036395,2]
[314393973,1708271438582,-1207.6990402,0.00036433,2]
[314393974,1708271438591,-1234.14,0.00036454,2]
[314393975,1708271438600,-490.56006909,0.00036529,2]
[314393976,1708271438618,-18.55993091,0.00036529,2]
[314393977,1708271438628,-162.69,0.00036532,2]
[314393978,1708271438637,-500.0,0.00036548,2]
[314393979,1708271438646,-153.76,0.00036573,2]
[314393980,1708271438655,-200.0,0.00036666,2]
[314393981,1708271438665,-155.06881471,0.00036666,8]
[314393982,1708271438675,-535.45956322,0.00036666,2]
[314393983,1708271438684,-152.24,0.00036678,2]
[314393984,1708271438693,-324.44631015,0.00036686,4]
[314393985,1708271438702,-498.87847,0.00036688,2]
[314393986,1708271438711,-500.0,0.00036756,3]
[314393987,1708271438720,-1207.6990403,0.00036756,2]
[314393988,1708271438730,-2564.19006927,0.00036758,3]
[314393989,1708271438739,-29111.70418415,0.00036758,2]
[314393994,1708271442714,-5654.63899889,0.00036758,2]
[314393995,1708271442771,-2459.53667299,0.00036758,2]
[314393996,1708271442884,-14979.43354112,0.00036758,2]
[314393997,1708271442897,-724.41329783,0.00036758,2]
[314393998,1708271442910,-6828.8547626,0.00036758,2]
[314393999,1708271442940,-519.72736454,0.00036758,2]
[314394000,1708271443108,-1486.02977919,0.00036758,2]
[314394003,1708271443121,-2740.0,0.00036758,2]
[314394027,1708271445872,-27831.49595349,0.00036758,2]
[314394028,1708271445885,-815.93806979,0.00036758,2]
[314394029,1708271445898,-5166.49193599,0.00036758,2]
[314394030,1708271445910,-25139.67319691,0.00036758,2]
[314394031,1708271445921,-3289.09678362,0.00036758,2]
[314394032,1708271445932,-4142.07285598,0.00036758,2]
[314394033,1708271445956,-1827.64971345,0.00036758,2]
[314394034,1708271445988,-12718.12122674,0.00036758,2]
[314394035,1708271446001,-2202.40988258,0.00036758,2]
[314394036,1708271446013,-505.40595551,0.00036758,2]
[314394037,1708271446045,-4462.36755,0.00036758,2]
[314394039,1708271446175,-5190.77607975,0.00036758,2]
[314394041,1708271446187,-573.71935722,0.00036758,2]
[314394042,1708271470394,12000.0,0.00023,2]
[314394043,1708271470420,12000.0,0.00023,2]
[314394044,1708271470447,12000.0,0.00023,2]
[314394045,1708271470473,12000.0,0.00023,2]
[314394046,1708271470518,10000.0,0.00023,2]
[314394047,1708271470565,50000.0,0.00023,2]
[314394048,1708271470599,50000.0,0.00023,2]
[314394049,1708271470630,10000.0,0.00023,2]
[314394050,1708271470666,12000.0,0.00023,2]
[314394051,1708271470732,112252.29983322,0.00023,2]
[314394052,1708271470777,550.0,0.00025,3]
[314394054,1708271609520,550.0,0.00025,3]
[314394055,1708271664642,457.89024766,0.000241,2]
[314394056,1708271752359,1270.12618297,0.000241,2]
[314394057,1708271764442,1416.71297264,0.00025,30]
[314394058,1708271772365,2437.86215541,0.000241,2]
[314394059,1708271792376,1270.12618297,0.000241,2]
[314394060,1708271805836,-4476.729798,0.00026566,2]
[314394061,1708271805873,-155.0,0.00026699,2]
[314394062,1708271805906,-184.98362258,0.000267,2]
[314394063,1708271805939,-228.74225568,0.000267,2]
[314394064,1708271805971,-224.04406869,0.000268,2]
[314394065,1708271805991,-4476.729798,0.000269,2]
[314394066,1708271806002,-155.0,0.000269,2]
[314394067,1708271806013,-184.98362258,0.000269,2]
[314394068,1708271806025,-228.74225568,0.000269,2]
[314394069,1708271806037,-224.04406869,0.000269,2]
[314394070,1708271806052,-172.82755505,0.000269,2]
[314394071,1708271806061,-445.0,0.00027,3]
[314394072,1708271814427,1270.12618297,0.000241,2]
[314394073,1708271834378,1270.12618297,0.000241,2]
[314394074,1708271854393,1270.12618297,0.000241,2]
[314394075,1708271870406,1270.12618297,0.000241,2]
[314394076,1708271886406,1270.12618297,0.000241,2]
[314394077,1708271904399,1270.12618297,0.000241,2]
[314394078,1708271922401,1270.12618297,0.000241,2]
[314394079,1708271938394,1270.12618297,0.000241,2]
[314394080,1708271964406,1270.12618297,0.000241,2]
[314394081,1708271982409,655.78491979,0.000241,2]
[314394108,1708272579539,-500.0,0.00026966,2]
[314394109,1708272579558,-1048.05810516,0.00026967,2]
[314394110,1708272579577,-515.91907522,0.00026967,2]
[314394111,1708272579596,-188.4006881,0.00026971,2]
[314394112,1708272579615,-155.0,0.00027,3]
[314394113,1708272579635,-179.86740335,0.00027718,2]
[314394114,1708272579653,-174.71,0.00027895,2]
[314394115,1708272579672,-150.0,0.00027999,2]
[314394116,1708272579691,-17088.04472817,0.00028,2]
[314394117,1708272590479,-5000.0,0.00028,2]
[314394119,1708272596547,-360.08138353,0.00027999,2]
[314394120,1708272596567,-345.94856025,0.00028,2]
[314394121,1708272596588,-154.31979091,0.000289,2]
[314394122,1708272596608,-650.0,0.00029,3]
[314394123,1708272596627,-499.99,0.00029,2]
[314394124,1708272596647,-150.99,0.00029,2]
[314394125,1708272596668,-154.31979083,0.000297,2]
[314394132,1708272631886,-154.31979083,0.000305,2]
[314394133,1708272631896,-152.0,0.00030656,3]
[314394134,1708272631906,-210.0,0.00030799,2]
[314394135,1708272631916,-490.58,0.00030839,2]
[314394136,1708272631927,-700.0,0.00031,3]
[314394137,1708272631936,-154.31979083,0.000313,2]
[314394138,1708272631946,-154.31979083,0.000321,2]
[314394139,1708272631956,-150.0,0.000321,2]
[314394140,1708272631965,-500.0,0.00032633,2]
[314394141,1708272631975,-150.0,0.00032648,2]
[314394142,1708272631985,-2000.0,0.0003265,2]
[314394143,1708272631995,-301.56,0.00032666,2]
[314394144,1708272632005,-200.0,0.00032682,2]
[314394145,1708272632015,-2705.0,0.00032682,2]
[314394146,1708272632025,-238.35,0.00032709,2]
[314394147,1708272632035,-1338.41,0.00032727,2]
[314394148,1708272632044,-154.31979083,0.000329,2]
[314394149,1708272632055,-5252.67,0.0003293,2]
[314394150,1708272632065,-150.0,0.00032937,2]
[314394151,1708272632075,-378.78,0.00032955,2]
[314394152,1708272632085,-500.0,0.00032955,2]
[314394153,1708272632095,-750.0,0.00033,3]
[314394154,1708272632105,-250.0,0.00033062,2]
[314394155,1708272632115,-200.0,0.00033062,2]
[314394156,1708272632125,-1000.0,0.00033085,2]
[314394157,1708272632135,-385.55466859,0.00033087,7]
[314394158,1708272632145,-23900.0,0.000331,2]
[314394159,1708272632155,-490.58,0.00033102,2]
[314394160,1708272632165,-310.79,0.00033119,2]
[314394161,1708272632175,-378.78,0.00033146,2]
[314394162,1708272632185,-1284.81,0.00033163,2]
[314394163,1708272632194,-4122.88,0.00033173,2]
[314394164,1708272632204,-1507.1,0.00033175,2]
[314394165,1708272632213,-273.24246873,0.00033196,2]
[314394166,1708272632227,-152.32,0.00033201,2]
[314394167,1708272632237,-500.0,0.00033202,2]
[314394168,1708272632246,-690.23,0.00033218,2]
[314394169,1708272632256,-444.48,0.0003323,2]
[314394170,1708272632266,-190.01,0.00033238,2]
[314394171,1708272632276,-750.0,0.00033247,2]
[314394173,1708272632288,-378.78,0.00033336,2]
[314394175,1708272632298,-168.19,0.00033387,2]
[314394177,1708272632309,-378.78,0.00033527,2]
[314394179,1708272632319,-250.0,0.00033577,2]
[314394181,1708272632329,-154.31979083,0.000337,2]
[314394183,1708272632339,-378.78,0.00033717,2]
[314394185,1708272632349,-284.0,0.00033879,2]
[314394187,1708272632359,-378.78,0.00033908,2]
[314394189,1708272632370,-198.05,0.00034037,2]
[314394191,1708272632381,-378.78,0.00034098,2]
[314394193,1708272632392,-198.05,0.0003413,2]
[314394195,1708272632401,-1000.0,0.00034139,2]
[314394198,1708272632412,-198.05,0.00034223,2]
[314394200,1708272632422,-693.1734216,0.00034286,4]
[314394202,1708272632432,-500.0,0.00034287,4]
[314394204,1708272632442,-378.78,0.00034288,2]
[314394206,1708272632453,-230.4,0.00034311,2]
[314394208,1708272632464,-198.05,0.00034316,2]
[314394210,1708272632474,-3561.0,0.00034379,2]
[314394212,1708272632484,-198.05,0.00034409,2]
[314394213,1708272632493,-1430.17,0.00034469,2]
[314394214,1708272632502,-378.78,0.00034479,2]
[314394215,1708272632512,-154.31979083,0.000345,2]
[314394216,1708272632522,-198.05,0.00034501,2]
[314394217,1708272632531,-702.396982,0.0003452,2]
[314394218,1708272632541,-1766.08061,0.0003452,2]
[314394219,1708272632553,-2082.408974,0.0003452,2]
[314394220,1708272632562,-1492.74,0.00034521,2]
[314394221,1708272632573,-198.05,0.00034594,2]
[314394222,1708272632583,-378.78,0.00034669,2]
[314394223,1708272632592,-198.05,0.00034687,2]
[314394224,1708272632602,-151.18,0.00034752,2]
[314394225,1708272632612,-198.05,0.0003478,2]
[314394226,1708272632622,-1053.595473,0.00034794,2]
[314394227,1708272632631,-2649.120915,0.00034794,2]
[314394228,1708272632640,-3123.613461,0.00034794,2]
[314394229,1708272632649,-1507.1,0.00034818,2]